[Event "*** Titled Tuesday Blitz"]
[Site "Chess.com"]
[Date "2019.03.05"]
[Round "8"]
[White "M1711"]
[Black "PowerThinking2650"]
[Result "1/2-1/2"]
[WhiteElo "2503"]
[BlackElo "2337"]
[TimeControl "180+2"]
[EndTime "14:59:56 PST"]
[Termination "Game drawn - insufficient material"]

1. e4 {[%clk 0:03:01.9]} 1... e5 {[%clk 0:03:00.1]} 2. f4 {[%clk 0:03:01.9]}
2... exf4 {[%clk 0:02:59.1]} 3. Nc3 {[%clk 0:03:02.3]} 3... d6 {[%clk
0:02:52.6]} 4. d4 {[%clk 0:02:59.8]} 4... g5 {[%clk 0:02:50.2]} 5. Bc4 {[%clk
0:02:58.9]} 5... Nf6 {[%clk 0:02:46.4]} 6. Nf3 {[%clk 0:02:52.9]} 6... h6 {[%clk
0:02:30.3]} 7. O-O {[%clk 0:02:48.1]} 7... Bg7 {[%clk 0:02:14]} 8. g3 {[%clk
0:01:58.5]} 8... g4 {[%clk 0:02:14.5]} 9. Nh4 {[%clk 0:01:58.3]} 9... f3 {[%clk
0:02:15.4]} 10. Nxf3 {[%clk 0:01:45.4]} 10... gxf3 {[%clk 0:02:14.7]} 11. Qxf3
{[%clk 0:01:47.3]} 11... Bh3 {[%clk 0:02:02.2]} 12. Rf2 {[%clk 0:01:46]} 12...
Nbd7 {[%clk 0:01:41.7]} 13. Bf4 {[%clk 0:01:35.5]} 13... O-O {[%clk 0:01:18]}
14. g4 {[%clk 0:01:28.7]} 14... Bxg4 {[%clk 0:01:15.5]} 15. Qg3 {[%clk
0:01:29.4]} 15... Be6 {[%clk 0:00:29.6]} 16. Be2 {[%clk 0:01:06.3]} 16... d5
{[%clk 0:00:22.9]} 17. Bxh6 {[%clk 0:01:03.7]} 17... Ne8 {[%clk 0:00:21.1]} 18.
exd5 {[%clk 0:00:52.3]} 18... Kh7 {[%clk 0:00:21.3]} 19. Bxg7 {[%clk 0:00:41.1]}
19... Nxg7 {[%clk 0:00:21.6]} 20. dxe6 {[%clk 0:00:42.4]} 20... fxe6 {[%clk
0:00:21.5]} 21. Bd3+ {[%clk 0:00:41.7]} 21... Kg8 {[%clk 0:00:21.7]} 22. Qg6
{[%clk 0:00:35.2]} 22... Rxf2 {[%clk 0:00:20.9]} 23. Qh7+ {[%clk 0:00:33.9]}
23... Kf8 {[%clk 0:00:18.2]} 24. Kxf2 {[%clk 0:00:33]} 24... Nf6 {[%clk
0:00:18.5]} 25. Qh4 {[%clk 0:00:30.8]} 25... Kf7 {[%clk 0:00:17]} 26. Rf1 {[%clk
0:00:28.6]} 26... Qh8 {[%clk 0:00:17.2]} 27. Qf4 {[%clk 0:00:23.4]} 27... Re8
{[%clk 0:00:11.1]} 28. Ne4 {[%clk 0:00:20.9]} 28... Nh5 {[%clk 0:00:09.8]} 29.
Qf3 {[%clk 0:00:21.7]} 29... Ke7 {[%clk 0:00:09]} 30. Ke2 {[%clk 0:00:19.3]}
30... Rf8 {[%clk 0:00:09.4]} 31. Nc5 {[%clk 0:00:14.5]} 31... Nd5 {[%clk
0:00:09.1]} 32. Qe4 {[%clk 0:00:12.6]} 32... Rf6 {[%clk 0:00:08.6]} 33. c4
{[%clk 0:00:08.2]} 33... Ndf4+ {[%clk 0:00:07.5]} 34. Kd2 {[%clk 0:00:09.3]}
34... Nxd3 {[%clk 0:00:08.3]} 35. Kxd3 {[%clk 0:00:04.6]} 35... Nf4+ {[%clk
0:00:08.8]} 36. Kc3 {[%clk 0:00:03.1]} 36... Qxh2 {[%clk 0:00:08.5]} 37. Rf3
{[%clk 0:00:03.2]} 37... Ne2+ {[%clk 0:00:08.9]} 38. Kb4 {[%clk 0:00:03.7]}
38... Rxf3 {[%clk 0:00:09.4]} 39. Qxf3 {[%clk 0:00:04.5]} 39... b6 {[%clk
0:00:10.7]} 40. Nb3 {[%clk 0:00:04.6]} 40... Nf4 {[%clk 0:00:09.8]} 41. Qc6
{[%clk 0:00:04.2]} 41... Kf6 {[%clk 0:00:10.4]} 42. Ka4 {[%clk 0:00:03.9]} 42...
Qc2 {[%clk 0:00:11]} 43. Qxc7 {[%clk 0:00:03.2]} 43... Nd3 {[%clk 0:00:12.2]}
44. Qd8+ {[%clk 0:00:03]} 44... Kf5 {[%clk 0:00:13]} 45. Qf8+ {[%clk 0:00:03.9]}
45... Ke4 {[%clk 0:00:14.3]} 46. Kb5 {[%clk 0:00:03]} 46... Nxb2 {[%clk
0:00:14.9]} 47. Qa8+ {[%clk 0:00:03]} 47... Ke3 {[%clk 0:00:13.9]} 48. Qc6
{[%clk 0:00:04.6]} 48... a6+ {[%clk 0:00:10.6]} 49. Kxb6 {[%clk 0:00:04.2]}
49... Nxc4+ {[%clk 0:00:11.3]} 50. Kc7 {[%clk 0:00:04.2]} 50... Kd3 {[%clk
0:00:07]} 51. Nc5+ {[%clk 0:00:04.8]} 51... Kxd4 {[%clk 0:00:07.6]} 52. Nxe6+
{[%clk 0:00:06]} 52... Kc3 {[%clk 0:00:08]} 53. Nc5 {[%clk 0:00:04.9]} 53... Kb2
{[%clk 0:00:07.7]} 54. Qxa6 {[%clk 0:00:04.3]} 54... Na3 {[%clk 0:00:07.8]} 55.
Qf6+ {[%clk 0:00:03.1]} 55... Kxa2 {[%clk 0:00:08.7]} 56. Qc6 {[%clk 0:00:03.7]}
56... Kb2 {[%clk 0:00:08.8]} 57. Kb8 {[%clk 0:00:02.3]} 57... Ka1 {[%clk
0:00:08.7]} 58. Qf6+ {[%clk 0:00:03.4]} 58... Qb2+ {[%clk 0:00:09.7]} 59. Qxb2+
{[%clk 0:00:02.5]} 59... Kxb2 {[%clk 0:00:11.6]} 60. Nd3+ {[%clk 0:00:03.8]}
60... Kc3 {[%clk 0:00:12.6]} 61. Ne5 {[%clk 0:00:05.7]} 61... Nc4 {[%clk
0:00:13.4]} 62. Nc6 {[%clk 0:00:07.6]} 62... Kb3 {[%clk 0:00:13.8]} 63. Na5+
{[%clk 0:00:08.2]} 63... Nxa5 {[%clk 0:00:14.3]} 1/2-1/2

[Event "*** Titled Tuesday Blitz"]
[Site "Chess.com"]
[Date "2019.03.05"]
[Round "8"]
[White "xLuring1"]
[Black "Denis_Palkovich"]
[Result "1/2-1/2"]
[WhiteElo "2405"]
[BlackElo "2250"]
[TimeControl "180+2"]
[EndTime "15:00:02 PST"]
[Termination "Game drawn by repetition"]

1. e4 {[%clk 0:03:00.2]} 1... c6 {[%clk 0:03:00.2]} 2. d4 {[%clk 0:03:00.8]}
2... d5 {[%clk 0:03:01.3]} 3. Nc3 {[%clk 0:03:01.5]} 3... dxe4 {[%clk
0:03:02.3]} 4. Nxe4 {[%clk 0:03:03.4]} 4... Nf6 {[%clk 0:03:03.9]} 5. Nxf6+
{[%clk 0:03:03.2]} 5... exf6 {[%clk 0:03:05.8]} 6. Nf3 {[%clk 0:03:02.5]} 6...
Bf5 {[%clk 0:03:06.9]} 7. Bd3 {[%clk 0:02:56.5]} 7... Bxd3 {[%clk 0:03:06.2]} 8.
Qxd3 {[%clk 0:02:57.3]} 8... Bd6 {[%clk 0:03:07.7]} 9. Bd2 {[%clk 0:02:57.4]}
9... O-O {[%clk 0:03:08.1]} 10. O-O {[%clk 0:02:57.8]} 10... Nd7 {[%clk
0:03:07.9]} 11. Rfe1 {[%clk 0:02:58.1]} 11... Qc7 {[%clk 0:03:08.7]} 12. Re2
{[%clk 0:02:53.1]} 12... Rfe8 {[%clk 0:03:09.2]} 13. Rae1 {[%clk 0:02:53.4]}
13... Rxe2 {[%clk 0:03:09.4]} 14. Qxe2 {[%clk 0:02:53.9]} 14... f5 {[%clk
0:02:57.4]} 15. Qc4 {[%clk 0:02:47.9]} 15... Nf6 {[%clk 0:02:49]} 16. h3 {[%clk
0:02:32.6]} 16... Ne4 {[%clk 0:02:43.8]} 17. Bc1 {[%clk 0:02:27.3]} 17... h6
{[%clk 0:02:40.7]} 18. Nd2 {[%clk 0:02:24.7]} 18... Re8 {[%clk 0:01:17.4]} 19.
Nxe4 {[%clk 0:02:23.6]} 19... fxe4 {[%clk 0:01:02.1]} 20. Qe2 {[%clk 0:02:19.8]}
20... f5 {[%clk 0:01:00.7]} 21. Qh5 {[%clk 0:02:20.7]} 21... Qf7 {[%clk
0:00:59.8]} 22. Qxf7+ {[%clk 0:02:14.1]} 22... Kxf7 {[%clk 0:01:01.7]} 23. g3
{[%clk 0:02:09.6]} 23... g5 {[%clk 0:01:01.6]} 24. Kg2 {[%clk 0:02:09.9]} 24...
f4 {[%clk 0:01:01.4]} 25. c3 {[%clk 0:02:07.3]} 25... Kf6 {[%clk 0:01:01.6]} 26.
h4 {[%clk 0:02:04.4]} 26... Kf5 {[%clk 0:00:56.4]} 27. hxg5 {[%clk 0:01:51.4]}
27... hxg5 {[%clk 0:00:57]} 28. gxf4 {[%clk 0:01:50.3]} 28... gxf4 {[%clk
0:00:54.8]} 29. Rh1 {[%clk 0:01:49.7]} 29... e3 {[%clk 0:00:38]} 30. fxe3 {[%clk
0:01:46.8]} 30... fxe3 {[%clk 0:00:29.7]} 31. Kf3 {[%clk 0:01:47.9]} 31... e2
{[%clk 0:00:25.8]} 32. Re1 {[%clk 0:01:43.7]} 32... Re4 {[%clk 0:00:10.3]} 33.
Rxe2 {[%clk 0:01:42.9]} 33... Rxe2 {[%clk 0:00:11.5]} 34. Kxe2 {[%clk 0:01:44]}
34... Ke4 {[%clk 0:00:13.2]} 35. Bg5 {[%clk 0:01:42.4]} 35... c5 {[%clk
0:00:14]} 36. dxc5 {[%clk 0:01:41]} 36... Bxc5 {[%clk 0:00:15.4]} 37. Kd2 {[%clk
0:01:42.4]} 37... b5 {[%clk 0:00:15.7]} 38. Kc2 {[%clk 0:01:43.5]} 38... a5
{[%clk 0:00:16.2]} 39. Bd2 {[%clk 0:01:39.2]} 39... a4 {[%clk 0:00:17.1]} 40.
Bg5 {[%clk 0:01:27.1]} 40... Bd6 {[%clk 0:00:17.8]} 41. Bd8 {[%clk 0:01:27]}
41... Bc5 {[%clk 0:00:18.4]} 42. Ba5 {[%clk 0:01:27.8]} 42... Bd6 {[%clk
0:00:17.7]} 43. Bb6 {[%clk 0:01:28.1]} 43... Be7 {[%clk 0:00:18.2]} 44. Bd4
{[%clk 0:01:29]} 44... b4 {[%clk 0:00:09.7]} 45. Bh8 {[%clk 0:01:25.7]} 45...
bxc3 {[%clk 0:00:06.7]} 46. Kxc3 {[%clk 0:01:23.3]} 46... Kd5 {[%clk 0:00:07.6]}
47. Bg7 {[%clk 0:01:21.8]} 47... Kc6 {[%clk 0:00:07.8]} 48. Kc4 {[%clk
0:01:19.6]} 48... Ba3 {[%clk 0:00:05.4]} 49. b3 {[%clk 0:01:00]} 49... axb3
{[%clk 0:00:06.5]} 50. axb3 {[%clk 0:01:01.3]} 50... Be7 {[%clk 0:00:07.1]} 51.
Bc3 {[%clk 0:01:02.4]} 51... Kb7 {[%clk 0:00:08.4]} 52. Bb4 {[%clk 0:01:03.7]}
52... Bxb4 {[%clk 0:00:08.3]} 53. Kxb4 {[%clk 0:01:04.6]} 53... Kb6 {[%clk
0:00:09.6]} 54. Kc4 {[%clk 0:01:05.9]} 54... Kc6 {[%clk 0:00:10.9]} 55. Kd4
{[%clk 0:01:05.8]} 55... Kb5 {[%clk 0:00:10.1]} 56. Kd3 {[%clk 0:01:07.2]} 56...
Kb4 {[%clk 0:00:10.8]} 57. Kc2 {[%clk 0:01:08.5]} 57... Kb5 {[%clk 0:00:12.1]}
58. Kb1 {[%clk 0:01:08.8]} 58... Kb4 {[%clk 0:00:13.1]} 59. Kb2 {[%clk
0:01:10.3]} 59... Kb5 {[%clk 0:00:14.5]} 60. Kc3 {[%clk 0:01:11.8]} 60... Kc5
{[%clk 0:00:15.6]} 61. b4+ {[%clk 0:01:13.3]} 61... Kb5 {[%clk 0:00:16.7]} 62.
Kb3 {[%clk 0:01:15.2]} 62... Kb6 {[%clk 0:00:17.8]} 63. Kc4 {[%clk 0:01:17.1]}
63... Kc6 {[%clk 0:00:18.9]} 64. b5+ {[%clk 0:01:19]} 64... Kb6 {[%clk
0:00:20.1]} 65. Kb4 {[%clk 0:01:20.9]} 65... Kb7 {[%clk 0:00:21.2]} 66. Kc3
{[%clk 0:01:22.1]} 66... Kb6 {[%clk 0:00:22.3]} 67. Kb4 {[%clk 0:01:23.6]} 67...
Kb7 {[%clk 0:00:23.5]} 68. Ka5 {[%clk 0:01:25.1]} 68... Ka7 {[%clk 0:00:24.5]}
69. b6+ {[%clk 0:01:26.2]} 69... Kb7 {[%clk 0:00:25.6]} 70. Kb5 {[%clk
0:01:27.9]} 70... Kb8 {[%clk 0:00:26.4]} 71. Kc5 {[%clk 0:01:29.1]} 71... Kb7
{[%clk 0:00:27.2]} 72. Kb5 {[%clk 0:01:30.5]} 72... Kb8 {[%clk 0:00:28.3]} 73.
Kc4 {[%clk 0:01:31.7]} 73... Kb7 {[%clk 0:00:29.4]} 74. Kc5 {[%clk 0:01:33.2]}
74... Kb8 {[%clk 0:00:29.9]} 75. Kb4 {[%clk 0:01:34.7]} 75... Kb7 {[%clk
0:00:31.1]} 76. Kb5 {[%clk 0:01:36.3]} 76... Kb8 {[%clk 0:00:32.2]} 77. Ka5
{[%clk 0:01:35.9]} 77... Kb7 {[%clk 0:00:33.3]} 78. Kb5 {[%clk 0:01:37.8]} 78...
Kb8 {[%clk 0:00:34.4]} 79. Kc4 {[%clk 0:01:39.5]} 79... Kb7 {[%clk 0:00:35.5]}
80. Kc5 {[%clk 0:01:41.1]} 80... Kb8 {[%clk 0:00:36.7]} 81. Kd6 {[%clk
0:01:41.5]} 81... Kb7 {[%clk 0:00:37.7]} 82. Kc5 {[%clk 0:01:42.9]} 82... Kb8
{[%clk 0:00:38.7]} 83. Kb4 {[%clk 0:01:43.6]} 83... Kb7 {[%clk 0:00:39.8]} 84.
Ka5 {[%clk 0:01:45.3]} 84... Kb8 {[%clk 0:00:40.5]} 85. Ka6 {[%clk 0:01:47.2]}
85... Ka8 {[%clk 0:00:41.5]} 86. Kb5 {[%clk 0:01:39.9]} 86... Kb7 {[%clk
0:00:43.3]} 87. Kc5 {[%clk 0:01:41.1]} 87... Kb8 {[%clk 0:00:44.5]} 88. Kc4
{[%clk 0:01:42.6]} 88... Kb7 {[%clk 0:00:45.6]} 89. Kb5 {[%clk 0:01:44.5]}
1/2-1/2

[Event "*** Titled Tuesday Blitz"]
[Site "Chess.com"]
[Date "2019.03.05"]
[Round "8"]
[White "Jenia84"]
[Black "STAYFlow"]
[Result "1-0"]
[WhiteElo "2188"]
[BlackElo "2216"]
[TimeControl "180+2"]
[EndTime "15:00:05 PST"]
[Termination "Jenia84 won by resignation"]

1. e4 {[%clk 0:03:01.9]} 1... e5 {[%clk 0:03:00.5]} 2. Nf3 {[%clk 0:02:59.7]}
2... Nc6 {[%clk 0:03:01.5]} 3. Bb5 {[%clk 0:02:59.8]} 3... a6 {[%clk 0:03:02]}
4. Ba4 {[%clk 0:02:59.8]} 4... Nf6 {[%clk 0:03:03.1]} 5. d3 {[%clk 0:02:56.6]}
5... d6 {[%clk 0:03:02.4]} 6. c3 {[%clk 0:02:55.9]} 6... g6 {[%clk 0:03:03.5]}
7. h4 {[%clk 0:02:49.2]} 7... Bg7 {[%clk 0:03:00.1]} 8. Bg5 {[%clk 0:02:36.4]}
8... Bg4 {[%clk 0:02:59.8]} 9. Bxc6+ {[%clk 0:02:27.5]} 9... bxc6 {[%clk
0:02:59.8]} 10. Qa4 {[%clk 0:02:28.1]} 10... h6 {[%clk 0:02:47.4]} 11. Bxf6
{[%clk 0:02:26.4]} 11... Bxf6 {[%clk 0:02:48.1]} 12. Qxc6+ {[%clk 0:02:25.8]}
12... Bd7 {[%clk 0:02:49.6]} 13. Qc4 {[%clk 0:02:24.2]} 13... Bb5 {[%clk
0:02:42.8]} 14. Qd5 {[%clk 0:02:11.3]} 14... c6 {[%clk 0:02:34.9]} 15. Qb3
{[%clk 0:02:11.4]} 15... Bxd3 {[%clk 0:02:36]} 16. Nbd2 {[%clk 0:02:10.5]} 16...
Rb8 {[%clk 0:02:27.8]} 17. Qa3 {[%clk 0:02:09.3]} 17... a5 {[%clk 0:01:58.3]}
18. c4 {[%clk 0:02:08]} 18... O-O {[%clk 0:01:39.5]} 19. Qxd3 {[%clk 0:02:07.3]}
19... Rxb2 {[%clk 0:01:40.9]} 20. O-O {[%clk 0:01:53]} 20... Bxh4 {[%clk
0:01:36.7]} 21. Nxh4 {[%clk 0:01:52.9]} 21... Qxh4 {[%clk 0:01:38.6]} 22. Nb3
{[%clk 0:01:50.5]} 22... a4 {[%clk 0:01:31.9]} 23. Qc3 {[%clk 0:01:43.1]} 23...
Re2 {[%clk 0:01:24.4]} 24. Nd2 {[%clk 0:01:39.5]} 24... Qf4 {[%clk 0:01:17.5]}
25. Rad1 {[%clk 0:01:34.5]} 25... f5 {[%clk 0:00:46.7]} 26. Qd3 {[%clk
0:01:29.8]} 26... Qg4 {[%clk 0:00:48.2]} 27. Qf3 {[%clk 0:01:10.7]} 27... Qxf3
{[%clk 0:00:46.7]} 28. gxf3 {[%clk 0:01:11.2]} 28... Rb8 {[%clk 0:00:34.7]} 29.
Nb1 {[%clk 0:00:54.2]} 29... Rxa2 {[%clk 0:00:28.8]} 30. Rxd6 {[%clk 0:00:53.4]}
30... Ra1 {[%clk 0:00:15.2]} 31. Nc3 {[%clk 0:00:52.9]} 31... Rxf1+ {[%clk
0:00:16.1]} 32. Kxf1 {[%clk 0:00:53.1]} 32... a3 {[%clk 0:00:17.5]} 33. Rxg6+
{[%clk 0:00:51.7]} 33... Kf7 {[%clk 0:00:17.5]} 34. Rxc6 {[%clk 0:00:52.3]}
34... Rb3 {[%clk 0:00:17.2]} 35. Rc7+ {[%clk 0:00:39.6]} 35... Ke8 {[%clk
0:00:15.9]} 36. Na2 {[%clk 0:00:35.8]} 36... fxe4 {[%clk 0:00:09.7]} 37. fxe4
{[%clk 0:00:33.8]} 37... Rb2 {[%clk 0:00:09.8]} 38. Nc3 {[%clk 0:00:24.4]} 38...
Rb3 {[%clk 0:00:10.7]} 39. Na2 {[%clk 0:00:21.1]} 39... Rb2 {[%clk 0:00:10.7]}
40. Nc3 {[%clk 0:00:20.9]} 40... Rb3 {[%clk 0:00:12]} 41. Nd1 {[%clk 0:00:17.2]}
41... a2 {[%clk 0:00:07.8]} 42. Ra7 {[%clk 0:00:18.1]} 42... Rb1 {[%clk
0:00:09.3]} 43. Rxa2 {[%clk 0:00:18.6]} 43... Rxd1+ {[%clk 0:00:10.8]} 44. Kg2
{[%clk 0:00:19.9]} 44... Rd4 {[%clk 0:00:12.5]} 45. Kf3 {[%clk 0:00:20.7]} 45...
Rxc4 {[%clk 0:00:13.6]} 46. Ra5 {[%clk 0:00:22.2]} 46... Rc3+ {[%clk 0:00:07.9]}
47. Kg4 {[%clk 0:00:22.1]} 47... Kf7 {[%clk 0:00:09.1]} 48. Rxe5 {[%clk
0:00:21.8]} 48... Kg6 {[%clk 0:00:09.3]} 49. Re6+ {[%clk 0:00:22.6]} 49... Kf7
{[%clk 0:00:09.9]} 50. Rxh6 {[%clk 0:00:22.8]} 50... Rc2 {[%clk 0:00:10.1]} 51.
f4 {[%clk 0:00:23]} 51... Rg2+ {[%clk 0:00:11.1]} 52. Kf5 {[%clk 0:00:24]} 52...
Rb2 {[%clk 0:00:11.9]} 53. Rh7+ {[%clk 0:00:24.7]} 53... Kf8 {[%clk 0:00:13.2]}
54. Ra7 {[%clk 0:00:26.2]} 54... Ke8 {[%clk 0:00:13.9]} 55. e5 {[%clk
0:00:27.3]} 55... Rh2 {[%clk 0:00:12.6]} 56. Rg7 {[%clk 0:00:23.9]} 56... Kf8
{[%clk 0:00:12.3]} 57. Rc7 {[%clk 0:00:24.5]} 57... Ke8 {[%clk 0:00:13.1]} 58.
Ke6 {[%clk 0:00:25]} 58... Rh6+ {[%clk 0:00:13.5]} 59. Kd5 {[%clk 0:00:25.8]}
59... Kd8 {[%clk 0:00:12.8]} 60. Rg7 {[%clk 0:00:25.6]} 60... Ke8 {[%clk
0:00:13.7]} 61. f5 {[%clk 0:00:26.2]} 61... Ra6 {[%clk 0:00:14.4]} 62. f6 {[%clk
0:00:26.5]} 62... Kf8 {[%clk 0:00:13.9]} 63. Ke4 {[%clk 0:00:26.6]} 63... Re6
{[%clk 0:00:13.3]} 64. Kf5 {[%clk 0:00:26.7]} 64... Ra6 {[%clk 0:00:14]} 65. Rb7
{[%clk 0:00:27.6]} 65... Ra5 {[%clk 0:00:14.7]} 66. Kg6 {[%clk 0:00:26.2]} 66...
Rxe5 {[%clk 0:00:13.3]} 67. Rb8+ {[%clk 0:00:25.5]} 67... Re8 {[%clk 0:00:14.3]}
68. Rxe8+ {[%clk 0:00:26.1]} 68... Kxe8 {[%clk 0:00:16.2]} 69. Kg7 {[%clk
0:00:27.3]} 1-0

[Event "*** Titled Tuesday Blitz"]
[Site "Chess.com"]
[Date "2019.03.05"]
[Round "8"]
[White "Al_Shima"]
[Black "Babas"]
[Result "1/2-1/2"]
[WhiteElo "2442"]
[BlackElo "2271"]
[TimeControl "180+2"]
[EndTime "15:00:11 PST"]
[Termination "Game drawn by agreement"]

1. b3 {[%clk 0:02:56.9]} 1... e5 {[%clk 0:02:59.7]} 2. Bb2 {[%clk 0:02:57.9]}
2... Nc6 {[%clk 0:03:01.1]} 3. e3 {[%clk 0:02:58.5]} 3... a6 {[%clk 0:03:02.6]}
4. Nf3 {[%clk 0:02:48.8]} 4... d6 {[%clk 0:03:02.7]} 5. d4 {[%clk 0:02:49]} 5...
exd4 {[%clk 0:03:02.4]} 6. Nxd4 {[%clk 0:02:49.3]} 6... Nxd4 {[%clk 0:03:02.7]}
7. Qxd4 {[%clk 0:02:50]} 7... Nf6 {[%clk 0:03:03.1]} 8. Nc3 {[%clk 0:02:50.7]}
8... Be7 {[%clk 0:03:01.6]} 9. O-O-O {[%clk 0:02:50.6]} 9... Be6 {[%clk
0:03:00.5]} 10. f3 {[%clk 0:02:48.9]} 10... Qd7 {[%clk 0:03:01.7]} 11. e4 {[%clk
0:02:48.8]} 11... O-O-O {[%clk 0:03:02.6]} 12. Qa7 {[%clk 0:02:48.9]} 12... Qc6
{[%clk 0:02:57.5]} 13. Ne2 {[%clk 0:02:23.2]} 13... d5 {[%clk 0:02:42.2]} 14.
Nd4 {[%clk 0:02:21.6]} 14... Qb6 {[%clk 0:02:30.9]} 15. Qxb6 {[%clk 0:02:20.2]}
15... cxb6 {[%clk 0:02:32.3]} 16. e5 {[%clk 0:02:21]} 16... Nd7 {[%clk
0:02:27.8]} 17. f4 {[%clk 0:02:21.7]} 17... Nc5 {[%clk 0:02:28.9]} 18. Bd3
{[%clk 0:02:10.2]} 18... g6 {[%clk 0:02:20.7]} 19. Rhg1 {[%clk 0:01:58.8]} 19...
h5 {[%clk 0:02:21.6]} 20. g3 {[%clk 0:01:59.7]} 20... Bg4 {[%clk 0:01:39.5]} 21.
Be2 {[%clk 0:01:53.1]} 21... Ne6 {[%clk 0:01:38.3]} 22. Nf3 {[%clk 0:01:45.3]}
22... Bc5 {[%clk 0:01:35.4]} 23. Rh1 {[%clk 0:01:41.9]} 23... Bh3 {[%clk
0:01:22.6]} 24. Bf1 {[%clk 0:01:40.6]} 24... Bxf1 {[%clk 0:01:15.3]} 25. Rhxf1
{[%clk 0:01:40.9]} 25... h4 {[%clk 0:01:09.4]} 26. Nxh4 {[%clk 0:01:34.2]} 26...
Nxf4 {[%clk 0:01:10.4]} 27. Kb1 {[%clk 0:01:24.4]} 27... g5 {[%clk 0:00:57.7]}
28. Nf5 {[%clk 0:01:16.9]} 28... Ne6 {[%clk 0:00:58.7]} 29. h4 {[%clk
0:01:13.5]} 29... gxh4 {[%clk 0:00:59.9]} 30. gxh4 {[%clk 0:01:14.6]} 30... Rh5
{[%clk 0:00:45.1]} 31. Bc1 {[%clk 0:00:47.7]} 31... d4 {[%clk 0:00:41.1]} 32.
Bb2 {[%clk 0:00:39.2]} 32... Rd5 {[%clk 0:00:30.3]} 33. Rde1 {[%clk 0:00:35.1]}
33... Kd7 {[%clk 0:00:23.9]} 34. Rf3 {[%clk 0:00:33.6]} 34... Bb4 {[%clk
0:00:24]} 35. Re2 {[%clk 0:00:33.6]} 35... b5 {[%clk 0:00:20]} 36. a3 {[%clk
0:00:34.1]} 36... Bf8 {[%clk 0:00:20.7]} 37. b4 {[%clk 0:00:34.6]} 37... Rh7
{[%clk 0:00:18]} 38. Kc1 {[%clk 0:00:33.8]} 38... Rh5 {[%clk 0:00:19.3]} 39. Kd2
{[%clk 0:00:34.9]} 39... Rh7 {[%clk 0:00:18.5]} 40. Kd3 {[%clk 0:00:36]} 40...
a5 {[%clk 0:00:17.3]} 41. bxa5 {[%clk 0:00:34.4]} 41... Bc5 {[%clk 0:00:18.8]}
42. Re4 {[%clk 0:00:32.4]} 42... Kc6 {[%clk 0:00:19.1]} 43. Ke2 {[%clk
0:00:27.6]} 43... Rh5 {[%clk 0:00:19.8]} 44. Kf1 {[%clk 0:00:27.3]} 44... d3
{[%clk 0:00:18.2]} 45. cxd3 {[%clk 0:00:27.7]} 45... Rxd3 {[%clk 0:00:18.2]} 46.
Rxd3 {[%clk 0:00:27.3]} 46... Rxf5+ {[%clk 0:00:20.1]} 47. Ke1 {[%clk
0:00:23.9]} 47... Bf2+ {[%clk 0:00:19.7]} 48. Kd1 {[%clk 0:00:23.7]} 48... Bc5
{[%clk 0:00:17.6]} 49. Bc1 {[%clk 0:00:18.9]} 49... Rf1+ {[%clk 0:00:18.1]} 50.
Re1 {[%clk 0:00:19]} 50... Rf2 {[%clk 0:00:18.4]} 51. Re2 {[%clk 0:00:19.7]}
51... Rf1+ {[%clk 0:00:19.2]} 52. Re1 {[%clk 0:00:21]} 52... Rf2 {[%clk
0:00:20.3]} 53. Be3 {[%clk 0:00:21.7]} 53... Ra2 {[%clk 0:00:16.7]} 54. Bxc5
{[%clk 0:00:22.5]} 54... Nxc5 {[%clk 0:00:17.5]} 55. Rc3 {[%clk 0:00:23.5]}
55... Kd5 {[%clk 0:00:18.2]} 56. Re2 {[%clk 0:00:21.6]} 56... Ra1+ {[%clk
0:00:19.3]} 57. Kd2 {[%clk 0:00:22.5]} 57... Kd4 {[%clk 0:00:20.8]} 58. Rg3
{[%clk 0:00:20.3]} 58... Ne4+ {[%clk 0:00:16.7]} 59. Rxe4+ {[%clk 0:00:20.3]}
59... Kxe4 {[%clk 0:00:18.6]} 60. Rg7 {[%clk 0:00:21.4]} 60... Kxe5 {[%clk
0:00:18.3]} 61. Rxf7 {[%clk 0:00:22.4]} 61... Rxa3 {[%clk 0:00:20.2]} 62. Rxb7
{[%clk 0:00:23]} 62... Rxa5 {[%clk 0:00:21.8]} 63. h5 {[%clk 0:00:24.4]} 63...
Ra6 {[%clk 0:00:21.7]} 64. Rxb5+ {[%clk 0:00:24.4]} 64... Kf4 {[%clk 0:00:23.1]}
65. Kd3 {[%clk 0:00:24.4]} 65... Rh6 {[%clk 0:00:23.1]} 66. Kd4 {[%clk
0:00:25.1]} 66... Kg4 {[%clk 0:00:24.5]} 67. Ke4 {[%clk 0:00:26.4]} 67... Rxh5
{[%clk 0:00:25.5]} 68. Rb8 {[%clk 0:00:27.6]} 68... Rg5 {[%clk 0:00:26.3]} 69.
Rb1 {[%clk 0:00:28.3]} 69... Kh5 {[%clk 0:00:27.5]} 70. Kf4 {[%clk 0:00:29.2]}
70... Rg4+ {[%clk 0:00:28.8]} 71. Kf5 {[%clk 0:00:30.6]} 71... Rg5+ {[%clk
0:00:30.3]} 72. Kf6 {[%clk 0:00:31.2]} 72... Rg6+ {[%clk 0:00:31.9]} 73. Kf7
{[%clk 0:00:32.3]} 73... Rg2 {[%clk 0:00:32.3]} 74. Rb4 {[%clk 0:00:32.1]} 74...
Kg5 {[%clk 0:00:33.2]} 75. Rb5+ {[%clk 0:00:33]} 75... Kf4 {[%clk 0:00:33.1]}
1/2-1/2